bitfinex/quotes_ETHUSD_20240825
["timestamp","ask_amount","ask_price","bid_price","bid_amount"]
[1724561403940,2.2707,2771.0,2770.8,7.21792]
[1724561404062,2.2707,2771.0,2770.8,3.60894]
[1724561404486,2.2742,2771.0,2770.6,0.56571408]
[1724561404701,2.2742,2770.8,2770.4,3.60951]
[1724561404865,2.2742,2770.8,2770.5,1.26873046]
[1724561405497,2.2742,2770.8,2770.6,3.6093]
[1724561406974,2.2742,2770.8,2770.5,1.26873046]
[1724561407170,2.2742,2770.8,2770.5,4.87811046]
[1724561407370,2.50162,2770.8,2770.5,3.60938]
[1724561408671,2.50162,2770.8,2770.4,8.48770046]
[1724561410206,2.50162,2770.8,2770.4,3.60948]
[1724561410405,2.50162,2770.8,2770.4,4.87821046]
[1724561410943,3.60922,2770.7,2770.2,3.60979]
[1724561411243,2.2742,2770.5,2770.1,0.56577968]
[1724561411399,2.2742,2770.5,2770.0,1.26873046]
[1724561411726,2.2742,2770.5,2770.1,3.60989]
[1724561411941,2.5816362,2770.5,2770.1,3.60989]
[1724561414634,2.5816362,2770.5,2770.2,4.87857046]
[1724561414839,2.2742,2770.5,2770.2,4.87857046]
[1724561415435,2.2742,2770.5,2770.1,7.21978]
[1724561415635,2.2742,2770.5,2770.1,8.48851046]
[1724561415960,2.2742,2770.5,2770.1,4.87862046]
[1724561416159,2.2742,2770.5,2770.1,8.48851046]
[1724561416325,2.2742,2770.5,2770.1,4.87862046]
[1724561416673,2.2742,2770.5,2770.1,8.48851046]
[1724561416860,2.2742,2770.5,2770.1,4.87862046]
[1724561417325,2.2742,2770.5,2770.1,8.48851046]
[1724561419627,2.2742,2770.5,2770.1,4.87861046]
[1724561419818,2.2742,2770.5,2770.2,3.60983]
[1724561422503,2.2742,2770.5,2770.1,4.87861046]
[1724561424003,2.2742,2770.5,2770.1,8.48850046]
[1724561424411,2.2742,2770.5,2770.1,4.87861046]
[1724561424922,2.2742,2770.5,2770.1,8.48850046]
[1724561429846,2.2742,2770.5,2770.1,4.87861046]
[1724561430132,2.2742,2770.5,2770.1,8.48850046]
[1724561430633,2.3772,2770.4,2770.0,3.6101]
[1724561432036,2.3772,2770.4,2770.1,4.87861046]
[1724561432239,2.3772,2770.4,2770.2,3.60975]
[1724561432397,2.3772,2770.4,2770.3,3.60971]
[1724561438292,0.55,2770.6,2770.3,3.60971]
[1724561440146,0.55,2770.6,2770.1,8.48846046]
[1724561440871,0.55,2770.6,2770.2,3.60982]
[1724561441072,2.56063,2770.5,2770.2,3.60982]
[1724561444818,3.4638707,2770.7,2770.4,3.60948]
[1724561445404,3.4638707,2770.7,2770.5,3.6094]
[1724561445726,2.3266,2770.7,2770.5,3.6094]
[1724561446102,3.4638707,2770.7,2770.5,3.6094]
[1724561447130,1.1372707,2770.8,2770.7,7.21838]
[1724561447328,1.1372707,2771.0,2770.8,4.87771046]
[1724561447530,1.1372707,2771.1,2770.8,4.87771046]
[1724561451414,1.1372707,2771.1,2770.8,1.26873046]
[1724561451610,1.1372707,2771.0,2770.8,1.26873046]
[1724561452220,1.1372707,2771.1,2770.8,1.26873046]
[1724561454843,1.1372707,2771.1,2770.7,3.60912]
[1724561455740,1.1372707,2771.1,2770.7,7.21824]
[1724561456339,1.1372707,2771.1,2770.7,7.21822]
[1724561457431,3.4638707,2771.2,2770.7,7.21822]
[1724561457838,3.4638707,2771.2,2770.7,7.2182]
[1724561459239,3.4638707,2771.2,2770.8,3.60905]
[1724561459461,3.4638707,2771.2,2770.9,3.60892]
[1724561459745,1.1372707,2771.4,2771.2,3.60854]
[1724561459942,1.1372707,2771.5,2771.3,4.87714046]
[1724561460145,1.1372707,2771.5,2771.4,3.60828]
[1724561460361,1.1372707,2771.6,2771.3,1.26873046]
[1724561460941,1.1372707,2771.6,2771.3,4.87713046]
[1724561461503,1.1372707,2771.6,2771.3,1.26873046]
[1724561463022,1.1372707,2771.7,2771.3,1.26873046]
[1724561464246,1.1372707,2771.7,2771.3,4.87712046]
[1724561464411,14.98605099,2771.8,2771.3,4.87712046]
[1724561464412,14.6068407,2771.8,2771.3,4.87712046]
[1724561466111,7.1468407,2771.8,2771.3,4.87712046]
[1724561466609,6.00957,2771.8,2771.3,4.87712046]
[1724561467751,0.1303289,2771.9,2771.6,3.60799]
[1724561468062,0.1303289,2771.9,2771.7,1.26873046]
[1724561470148,0.1303289,2771.9,2771.8,3.60776]
[1724561487908,0.1303289,2771.9,2771.8,9.59737088]
[1724561488793,0.1303289,2771.9,2771.8,9.52522]
[1724561488977,0.1303289,2771.9,2771.8,14.57317205]
[1724561493590,0.1303289,2771.9,2771.8,10.96541205]
[1724561495700,0.1303289,2771.9,2771.8,3.60776]
[1724561496128,0.1303289,2771.9,2771.7,1.26873046]
[1724561496429,0.1303289,2771.9,2771.7,4.26873046]
[1724561496727,0.1303289,2771.9,2771.7,7.87653046]
[1724561497393,0.1303289,2771.9,2771.8,3.60776]
[1724561503314,0.1303289,2771.9,2771.8,7.21552]
[1724561503637,0.1303289,2771.9,2771.8,8.36394505]
[1724561508446,0.1303289,2771.9,2771.8,7.21552]
[1724561518129,2.2856,2771.8,2771.6,3.6079]
[1724561518308,3.41757769,2771.8,2771.6,3.60792]
[1724561518502,3.41757769,2771.8,2771.7,3.60789]
[1724561518748,1.13197769,2771.8,2771.7,3.60789]
[1724561519006,0.1303289,2771.9,2771.8,7.21552]
[1724561520424,0.1303289,2771.9,2771.8,8.09760165]
[1724561520764,0.1303289,2771.9,2771.8,7.21552]
[1724561523469,0.1303289,2771.9,2771.8,7.55208601]
[1724561524874,0.1303289,2771.9,2771.8,7.21552]
[1724561525165,0.1303289,2771.9,2771.8,7.55196155]
[1724561525375,0.1303289,2771.9,2771.8,7.8883668]
[1724561525941,0.1303289,2771.9,2771.8,7.55192525]
[1724561526543,0.1303289,2771.9,2771.8,4.2805256]
[1724561526766,0.1303289,2771.9,2771.8,3.60776]
[1724561526967,0.1303289,2771.9,2771.8,7.21552]
[1724561531656,0.1303289,2771.9,2771.8,7.5517976]
[1724561532090,0.1303289,2771.9,2771.8,7.21552]
[1724561532258,0.1303289,2771.9,2771.8,7.5517976]
[1724561532661,0.1303289,2771.9,2771.8,7.21552]
[1724561533063,0.1303289,2771.9,2771.8,7.5517976]
[1724561533750,0.1303289,2771.9,2771.8,7.21552]
[1724561535096,0.1303289,2771.9,2771.8,7.55180369]
[1724561535816,0.1303289,2771.9,2771.8,7.55172179]
[1724561536468,0.1303289,2771.9,2771.8,8.09756523]
[1724561536683,0.1303289,2771.9,2771.8,10.72555641]
[1724561537409,0.1303289,2771.9,2771.8,10.72551986]
[1724561540364,0.1303289,2771.9,2771.8,10.72550582]
[1724561540570,0.1303289,2771.9,2771.8,8.43370582]
[1724561546509,0.1303289,2771.9,2771.8,8.09756523]
[1724561546686,0.1303289,2771.9,2771.8,8.43363441]
[1724561546886,0.1303289,2771.9,2771.8,8.76970359]
[1724561547481,0.1303289,2771.9,2771.8,15.96300466]
[1724561547681,0.1303289,2771.9,2771.8,20.84426004]
[1724561549931,0.1303289,2771.9,2771.8,20.84418199]
[1724561551402,0.1303289,2771.9,2771.8,18.96292661]
[1724561552081,0.1303289,2771.9,2771.8,18.96290065]
[1724561552414,0.1303289,2771.9,2771.8,17.70878554]
[1724561553138,0.0803289,2771.9,2771.8,17.70878554]
[1724561553345,0.0803289,2771.9,2771.8,17.37279441]
[1724561553638,0.0803289,2771.9,2771.8,17.70874881]
[1724561553811,0.0803289,2771.9,2771.8,18.96288373]
[1724561554009,0.0803289,2771.9,2771.8,17.70874881]
[1724561554216,0.0803289,2771.9,2771.8,18.96291025]
[1724561554413,0.0803289,2771.9,2771.8,17.70874881]
[1724561554805,0.0803289,2771.9,2771.8,17.37267963]
[1724561555030,0.0803289,2771.9,2771.8,18.62680389]
[1724561555226,0.0803289,2771.9,2771.8,16.29540389]
[1724561555405,0.0803289,2771.9,2771.8,16.29541423]
[1724561555605,0.0803289,2771.9,2771.8,15.04127963]
[1724561555828,0.0803289,2771.9,2771.8,7.5514744]
[1724561556040,2.429,2771.8,2771.3,10.9483]
[1724561556203,3.56493537,2771.7,2771.4,3.60816]
[1724561556400,2.429,2771.7,2771.4,3.60816]
[1724561556605,3.56493537,2771.7,2771.4,3.60816]
[1724561557247,2.429,2771.7,2771.4,3.60816]
[1724561561531,2.429,2771.7,2771.4,4.87689046]
[1724561562750,2.429,2771.7,2771.5,3.60811]
[1724561562912,1.21626427,2771.9,2771.6,4.87675046]
[1724561562913,2.3329289,2771.9,2771.6,4.87675046]
[1724561563116,2.3329289,2771.9,2771.8,4.87649046]
[1724561564748,2.3329289,2771.9,2771.8,3.60776]
[1724561565328,2.3329289,2771.9,2771.8,4.87649046]
[1724561568421,2.3329289,2771.9,2771.8,3.60776]
[1724561571862,0.0803289,2771.9,2771.8,4.87649046]
[1724561574362,0.0803289,2771.9,2771.8,5.72492851]
[1724561578895,0.0803289,2771.9,2771.8,4.87649046]
[1724561579185,0.0803289,2771.9,2771.8,1.26873046]
[1724561580229,0.0803289,2771.9,2771.8,4.87649046]
[1724561580434,0.0803289,2771.9,2771.8,1.26873046]
[1724561584608,2.2582,2771.8,2771.5,3.60807]
[1724561585945,2.2082,2771.8,2771.5,3.60807]
[1724561586185,2.2082,2771.8,2771.5,7.21614]
[1724561586690,2.2082,2771.8,2771.5,7.21615]
[1724561586842,2.2082,2771.8,2771.5,3.60807]
[1724561587385,2.2082,2771.8,2771.5,3.60806]
[1724561587586,2.2082,2771.8,2771.6,3.608]
[1724561591875,2.2082,2771.8,2771.7,3.60789]
[1724561592265,0.0803289,2771.9,2771.7,3.60789]
[1724561595495,0.0803289,2771.9,2771.7,3.60789]
[1724561598012,0.0803289,2771.9,2771.7,7.21571]
[1724561600717,0.0803289,2771.9,2771.8,3.60776]
[1724561604281,0.0803289,2771.9,2771.8,4.87649046]
[1724561604703,3.68146427,2771.9,2771.7,3.60782]
[1724561604907,1.13593537,2771.8,2771.7,3.60782]
[1724561611389,1.13593537,2771.8,2771.6,1.26873046]
[1724561612918,1.13593537,2771.8,2771.6,4.87674046]
[1724561617187,1.13593537,2771.8,2771.7,3.60789]
[1724561628089,1.50930359,2771.8,2771.5,3.60803]
[1724561628300,1.13702499,2771.7,2771.5,3.60803]
[1724561628503,1.13702499,2771.6,2771.5,3.60803]
[1724561629136,1.13702499,2771.7,2771.6,3.60802]
[1724561640764,1.50930359,2771.7,2771.6,3.60802]
[1724561640929,1.50930359,2771.8,2771.6,3.60802]
[1724561641127,1.50930359,2771.8,2771.4,3.60821]
[1724561641336,1.13691747,2771.5,2771.2,10.21689]
[1724561641565,2.4778,2771.4,2771.2,10.21689]
[1724561641729,2.4778,2771.4,2771.2,3.60844]
[1724561641929,3.61471747,2771.4,2771.2,7.21691]
[1724561642172,3.61471747,2771.4,2771.3,3.60841]
[1724561642483,3.61471747,2771.4,2771.1,0.33614972]
[1724561642770,1.13691747,2771.3,2771.0,12.21744046]
[1724561643131,1.13691747,2771.3,2771.0,7.34]
[1724561643394,1.13691747,2771.2,2771.0,7.34]
[1724561645372,1.13691747,2771.3,2771.0,7.34]
[1724561647322,1.13691747,2771.3,2771.2,3.60854]
[1724561647479,1.13691747,2771.4,2771.3,3.60841]
[1724561647689,1.13691747,2771.6,2771.4,3.60818]
[1724561647986,1.13691747,2771.6,2771.3,3.60841]
[1724561648197,1.13691747,2771.6,2771.5,3.60815]
[1724561648393,1.13691747,2771.7,2771.5,3.60815]
[1724561649186,1.13691747,2771.7,2771.4,1.26873046]
[1724561649591,1.13691747,2771.7,2771.4,4.87698046]
[1724561652227,1.13691747,2771.7,2771.4,1.26873046]
[1724561652402,1.13691747,2771.7,2771.3,3.6083]
[1724561654104,1.13691747,2771.6,2771.3,3.6083]
[1724561654705,2.357,2771.5,2771.2,4.87723046]
[1724561654909,2.357,2771.5,2770.7,13.94916]
[1724561654910,4.74519747,2771.4,2770.9,3.60888]
[1724561655234,2.357,2771.3,2770.8,1.26873046]
[1724561655430,3.60855,2771.2,2770.7,3.0]
[1724561655597,3.60855,2771.2,2770.6,1.26873046]
[1724561655598,2.357,2771.1,2770.6,3.6093]
[1724561655993,2.357,2771.1,2770.7,3.60918]
[1724561656227,2.357,2771.1,2770.7,8.48709046]
[1724561657531,2.357,2771.1,2770.7,8.48701046]
[1724561658207,2.357,2771.1,2770.7,4.87783046]
[1724561660044,2.357,2771.1,2770.7,8.48694046]
[1724561660240,2.357,2771.1,2770.7,5.78309052]
[1724561661135,2.357,2771.1,2770.8,3.60902]
[1724561663298,2.357,2771.1,2770.9,1.26873046]
[1724561663929,2.35588341,2771.1,2770.9,1.26873046]
[1724561664837,4.74519747,2771.4,2770.9,1.26873046]
[1724561665002,0.55,2771.3,2770.9,1.26873046]
[1724561665703,0.55,2771.3,2770.9,4.87764046]
[1724561666903,2.3817,2771.2,2770.9,4.87764046]
[1724561669509,2.3817,2771.2,2770.9,1.26873046]
[1724561677047,2.3817,2771.2,2770.8,3.60901]
[1724561682179,2.3817,2771.2,2770.8,7.218]
[1724561682485,2.3817,2771.2,2770.9,0.84867305]
[1724561682688,2.3817,2771.2,2770.8,7.218]
[1724561683147,2.3817,2771.2,2770.8,3.60899]
[1724561684073,3.51861747,2771.2,2770.8,3.60899]
[1724561684856,2.3817,2771.2,2770.8,3.60899]
[1724561685391,3.51861747,2771.2,2770.8,3.60899]
[1724561689092,3.51861747,2771.2,2770.8,7.21796]
[1724561690009,3.51861747,2771.2,2770.8,3.60897]
[1724561694021,3.51861747,2771.2,2770.8,7.21796]
[1724561694192,3.51861747,2771.2,2770.8,3.60897]
[1724561695576,1.13691747,2771.1,2770.8,3.60897]
[1724561695820,3.51861747,2771.2,2770.8,3.60897]
[1724561695981,3.51861747,2771.2,2770.8,7.21795]
[1724561696181,3.51861747,2771.2,2770.8,3.60897]
[1724561696382,1.13691747,2771.1,2770.8,3.60897]
[1724561696883,3.51861747,2771.2,2770.8,3.60897]
[1724561697083,1.13691747,2771.1,2770.8,4.13043216]
[1724561699399,1.13691747,2771.1,2770.8,4.46736362]
[1724561700465,1.13691747,2771.0,2770.8,4.13043216]
[1724561701370,1.13691747,2771.0,2770.8,3.60897]
[1724561701576,1.13691747,2771.0,2770.9,0.33694304]
[1724561701755,1.13691747,2771.0,2770.8,3.60897]
[1724561701948,1.13691747,2770.9,2770.8,3.94593913]
[1724561702365,1.13691747,2771.0,2770.8,3.94593913]
[1724561702567,1.13691747,2771.0,2770.8,3.60897]
[1724561702742,1.13691747,2771.0,2770.9,0.33696441]
[1724561703275,1.13691747,2771.0,2770.8,3.60897]
[1724561703948,1.13691747,2770.9,2770.8,3.60897]
[1724561704152,1.13691747,2770.9,2770.8,3.94595903]
[1724561706190,1.13691747,2770.9,2770.8,3.94596242]
[1724561707869,1.13691747,2771.0,2770.8,3.94596242]
[1724561708083,1.13691747,2771.0,2770.8,3.60897]
[1724561708286,1.13691747,2771.0,2770.9,0.33695904]
[1724561708986,1.13691747,2771.0,2770.8,3.60897]
[1724561709190,1.13691747,2771.0,2770.9,0.33695793]
[1724561710687,1.13691747,2771.0,2770.8,3.60897]
[1724561710888,1.13773246,2771.0,2770.8,3.60897]
[1724561712599,1.13773246,2770.9,2770.8,3.60897]
[1724561712759,1.13773246,2770.9,2770.8,3.9459257]
[1724561716235,1.13773246,2770.9,2770.8,3.60897]
[1724561716516,1.13773246,2770.9,2770.8,3.94592933]
[1724561717007,1.13773246,2770.9,2770.8,3.60897]
[1724561717293,1.13773246,2770.9,2770.8,3.94593507]
[1724561718464,1.13773246,2771.0,2770.8,3.94593507]
[1724561718681,1.13773246,2771.0,2770.9,0.33696507]
[1724561719116,1.13773246,2771.0,2770.8,3.60897]
[1724561721421,1.13773246,2771.0,2770.9,4.87766046]
[1724561721609,1.13773246,2771.0,2770.9,9.22057651]
[1724561721928,1.13773246,2771.2,2771.1,3.60867]
[1724561722089,1.13773246,2771.2,2771.1,4.87740046]
[1724561724219,1.13773246,2771.2,2771.1,1.26873046]
[1724561724587,1.13773246,2771.3,2771.1,4.87740046]
[1724561727629,1.13773246,2771.3,2771.2,3.60854]
[1724561727802,1.13773246,2771.5,2771.4,3.60828]
[1724561727999,1.13773246,2771.5,2771.4,8.48529046]
[1724561728199,1.13773246,2771.8,2771.5,3.60815]
[1724561728400,1.13773246,2771.8,2771.6,5.36435851]
[1724561728926,0.0803289,2771.9,2771.7,3.60785]
[1724561732931,0.0803289,2771.9,2771.6,1.75641851]
[1724561733130,0.0803289,2771.9,2771.5,7.21618]
[1724561734125,0.0803289,2771.9,2771.6,3.608]
[1724561734712,2.4811,2771.8,2771.6,3.608]
[1724561740245,2.4811,2771.8,2771.6,7.2159]
[1724561740443,2.4811,2771.8,2771.6,3.60795]
[1724561742551,0.0803289,2771.9,2771.7,3.60789]
[1724561742763,0.0803289,2771.9,2771.8,3.60776]
[1724561748372,0.0803289,2771.9,2771.6,4.87664046]
[1724561748554,0.0803289,2771.9,2771.6,5.59762451]
[1724561749184,0.0803289,2771.9,2771.7,3.60788]
[1724561754889,0.0803289,2771.9,2771.8,8.55640194]
[1724561755033,0.0803289,2771.9,2771.8,8.48425046]
[1724561765902,0.0803289,2771.9,2771.8,11.48425046]
[1724561766085,0.0803289,2771.9,2771.8,13.30692791]
[1724561768082,0.0803289,2771.9,2771.8,16.91468791]
[1724561782617,0.0803289,2771.9,2771.8,19.38058791]
[1724561782818,0.0803289,2771.9,2771.8,20.63466445]
[1724561783218,0.0803289,2771.9,2771.8,19.38058791]
[1724561783518,0.0803289,2771.9,2771.8,20.63465884]
[1724561784628,0.0803289,2771.9,2771.8,21.17254356]
[1724561785325,0.0803289,2771.9,2771.8,20.63465884]
[1724561788921,0.0803289,2771.9,2771.8,22.51573852]
[1724561790491,0.0803289,2771.9,2771.8,16.91468791]
[1724561793939,0.0803289,2771.9,2771.8,18.16878327]
[1724561796036,0.0803289,2771.9,2771.8,18.168782]
[1724561797208,0.0803289,2771.9,2771.8,20.04993894]
[1724561797410,0.0803289,2771.9,2771.8,18.168782]
[1724561797607,0.0803289,2771.9,2771.8,20.04993933]
[1724561797915,0.0803289,2771.9,2771.8,18.168782]
[1724561798141,0.0803289,2771.9,2771.8,20.04993945]
[1724561799349,0.0803289,2771.9,2771.8,26.68506813]
[1724561799513,0.0803289,2771.9,2771.8,25.93519945]
[1724561799717,0.0803289,2771.9,2771.8,29.56796127]
[1724561799920,0.0803289,2771.9,2771.8,25.93519945]
[1724561800234,0.0803289,2771.9,2771.8,29.56800365]
[1724561801415,0.0803289,2771.9,2771.8,29.56800185]
[1724561802357,0.0803289,2771.9,2771.8,25.93519945]
[1724561803159,0.0803289,2771.9,2771.8,29.56797798]
[1724561803352,0.0803289,2771.9,2771.8,25.93519945]
[1724561805363,0.0803289,2771.9,2771.8,29.56797487]
[1724561805654,0.0803289,2771.9,2771.8,29.56768863]
[1724561805859,0.0803289,2771.9,2771.8,25.93491321]
[1724561806030,0.0803289,2771.9,2771.8,29.94255638]
[1724561806031,0.03419553,2771.9,2771.8,29.94255638]
[1724561808156,0.03419553,2771.9,2771.8,28.44281902]
[1724561808324,0.03419553,2771.9,2771.8,29.94255638]
[1724561809473,0.03419553,2771.9,2771.8,28.44281902]
[1724561810356,0.03419553,2771.9,2771.8,25.30785372]
[1724561810561,0.03419553,2771.9,2771.8,28.4426169]
[1724561812161,0.03419553,2771.9,2771.8,29.56993351]
[1724561813168,0.03419553,2771.9,2771.8,29.56989309]
[1724561814769,0.03419553,2771.9,2771.8,28.4426169]
[1724561814951,0.03419553,2771.9,2771.8,29.56987974]
[1724561815456,0.03419553,2771.9,2771.8,29.57005008]
[1724561816371,0.03419553,2771.9,2771.8,22.41605962]
[1724561816667,0.03419553,2771.9,2771.8,20.80128629]
[1724561817060,0.03419553,2771.9,2771.8,20.04962143]
[1724561817631,2.40499553,2771.9,2771.8,4.86173341]
[1724561817832,2.40499553,2771.9,2771.8,3.60776]
[1724561818035,2.40499553,2771.9,2771.6,1.26873046]
[1724561818284,3.64189553,2771.9,2771.3,3.60829]
[1724561818577,3.64189553,2771.9,2771.2,3.60846]
[1724561818578,2.3708,2771.7,2771.2,3.60846]
[1724561818871,2.3708,2771.5,2771.2,3.60846]
[1724561819168,2.3708,2771.5,2771.1,4.87729046]
[1724561821540,2.3708,2771.5,2771.1,8.48587046]
[1724561821844,2.3708,2771.5,2771.2,3.60852]
[1724561826374,2.3708,2771.5,2771.1,4.87729046]
[1724561826375,2.3708,2771.5,2771.3,3.6084]
[1724561829439,2.60788,2771.5,2771.1,4.87734046]
[1724561832361,2.60788,2771.5,2771.1,8.48593046]
[1724561833406,2.60788,2771.5,2771.2,3.60849]
[1724561835705,2.60788,2771.5,2771.3,3.60837]
[1724561835872,2.3708,2771.5,2771.3,3.60837]
[1724561838608,2.3708,2771.5,2771.3,3.60837]
[1724561840903,2.3708,2771.5,2771.3,4.87710046]
[1724561842212,2.3708,2771.5,2771.4,3.60828]
[1724561851450,2.3708,2771.5,2771.2,3.60847]
[1724561853400,2.3708,2771.5,2771.0,1.26873046]
[1724561853606,2.4794,2771.3,2770.9,3.60886]
[1724561854208,2.4794,2771.3,2770.3,5.86366]
[1724561854209,2.4794,2771.1,2770.6,3.60921]
[1724561854414,3.60868,2771.1,2770.5,3.60937]
[1724561854743,2.3623,2771.0,2770.5,7.21875]
[1724561854930,2.3623,2771.0,2770.6,3.6093]
[1724561856022,2.3623,2771.0,2770.7,3.60919]
[1724561856729,2.3623,2771.0,2770.7,7.2183]
[1724561856916,2.3623,2771.0,2770.7,3.60911]
[1724561858178,2.3623,2771.0,2770.8,3.60903]
[1724561862657,2.3623,2771.0,2770.6,4.87804046]
[1724561862658,2.3623,2771.0,2770.6,3.60931]
[1724561863159,2.3623,2771.0,2770.5,3.60944]
[1724561863160,2.2764,2770.9,2770.5,3.60944]
[1724561863934,2.2764,2770.9,2770.3,8.48803046]
[1724561864859,2.2764,2770.9,2770.4,3.60956]
[1724561867228,2.2764,2770.9,2770.3,8.48796046]
[1724561867560,2.2764,2770.9,2770.4,3.60958]
[1724561871448,2.2764,2770.9,2770.2,3.60972]
[1724561871449,2.2764,2770.8,2770.2,3.60972]
[1724561871841,2.2764,2770.8,2770.3,3.60971]
[1724561880492,2.3188,2770.7,2770.2,3.60975]
[1724561881261,2.3188,2770.7,2770.4,3.60948]
[1724561881498,2.3188,2770.7,2770.5,3.60944]
[1724561886168,2.3188,2770.7,2770.4,1.26873046]
[1724561886883,2.3188,2770.7,2770.3,7.21929]
[1724561886884,2.3188,2770.7,2770.3,7.21923]
[1724561887090,2.3188,2770.7,2770.3,7.2192]
[1724561888406,2.3188,2770.7,2770.3,3.60959]
[1724561889106,2.3188,2770.7,2770.4,3.60958]
[1724561892913,2.3188,2770.7,2770.3,3.60959]
[1724561896012,2.3188,2770.7,2770.3,7.21922]
[1724561896221,2.3188,2770.7,2770.3,8.06801505]
[1724561896821,2.3453,2770.9,2770.4,1.26873046]
[1724561897026,2.3453,2770.9,2770.6,1.26873046]
[1724561897802,2.3453,2770.9,2770.7,3.60917]
[1724561898752,2.3453,2770.9,2770.6,1.26873046]
[1724561898891,2.3453,2770.9,2770.6,4.87803046]
[1724561899296,3.85460359,2771.1,2770.6,5.72676751]
[1724561899633,3.85460359,2771.1,2770.6,4.87803046]
[1724561905510,1.50930359,2771.0,2770.6,4.87803046]
[1724561906623,1.50930359,2771.0,2770.7,3.60916]
[1724561906824,3.85460359,2771.1,2770.6,1.26873046]
[1724561907439,1.50930359,2771.0,2770.6,1.26873046]
[1724561908063,1.50930359,2771.0,2770.9,3.60893]
[1724561908248,2.3453,2771.1,2770.8,1.26873046]
[1724561910199,2.3453,2771.1,2770.8,4.87776046]
[1724561910365,2.3453,2771.1,2770.8,1.26873046]
[1724561913862,2.3453,2771.1,2770.8,4.87777046]
[1724561916147,2.2606,2771.3,2770.9,3.60893]
[1724561916364,2.2606,2771.3,2771.0,3.60873]
[1724561917742,2.2606,2771.3,2771.1,3.60866]
[1724561917942,2.2606,2771.3,2770.9,3.60881]
[1724561923441,2.2606,2771.3,2771.0,3.6088]
[1724561932350,2.2606,2771.3,2771.0,3.60872]
[1724561933862,2.2606,2771.3,2771.1,3.60866]
[1724561942101,7.2157,2771.8,2771.5,3.60807]
[1724561942102,3.76430359,2771.8,2771.5,3.60807]
[1724561942306,3.76430359,2771.8,2771.4,4.87701046]
[1724561942466,2.255,2771.8,2771.4,4.87701046]
[1724561942663,2.255,2771.8,2771.4,8.48520046]
[1724561943167,2.255,2771.8,2771.4,4.87692046]
[1724561943371,5.43677043,2771.8,2771.4,4.87692046]
[1724561943883,5.43677043,2771.8,2771.4,3.60819]
[1724561945219,3.76430359,2771.8,2771.4,3.60819]
[1724561945373,2.255,2771.8,2771.4,7.21638]
[1724561946492,2.255,2771.8,2771.5,3.60815]
[1724561948013,2.255,2771.8,2771.6,3.60802]
[1724561950130,3.76430359,2772.1,2771.6,4.87675046]
[1724561950342,3.76430359,2772.1,2771.7,0.49489099]
[1724561950498,2.255,2772.1,2771.7,0.49489099]
[1724561950676,2.255,2772.1,2771.6,4.87675046]
[1724561951092,2.255,2772.1,2771.8,3.60768]
[1724561953232,2.255,2772.1,2771.6,8.48466046]
[1724561953822,2.255,2772.1,2771.7,3.60787]
[1724561954627,2.255,2772.1,2771.7,2.852094]
[1724561954808,3.30809199,2772.1,2771.7,2.852094]
[1724561955204,3.30809199,2772.1,2771.6,4.87664046]
[1724561955536,3.30809199,2772.1,2771.7,3.60781]
[1724561955825,2.255,2772.1,2771.7,3.60781]
[1724561956492,2.255,2772.1,2771.8,3.60775]
[1724561972961,2.255,2772.1,2771.8,7.21539]
[1724561973177,2.255,2772.1,2771.8,3.60764]
[1724561979983,2.255,2772.1,2771.9,3.60751]
[1724561984572,3.76430359,2772.1,2771.9,3.60751]
[1724561984948,2.255,2772.1,2771.9,3.60751]
[1724561985184,3.76430359,2772.1,2771.9,3.60751]
[1724561986350,3.76430359,2772.1,2771.7,3.60777]
[1724561987471,1.50930359,2772.0,2771.7,3.60777]
[1724561988281,2.3142,2771.9,2771.5,3.60814]
[1724561988483,3.82350359,2771.9,2771.5,3.60814]
[1724561989758,3.82350359,2771.9,2771.6,3.60802]
[1724561989959,3.82350359,2771.8,2771.3,0.33627308]
[1724561990179,2.3142,2771.6,2771.3,3.60832]
[1724561991209,2.3142,2771.6,2771.4,3.60827]
[1724561998391,2.3142,2771.6,2771.2,3.94485901]
[1724561998589,2.3142,2771.6,2771.2,3.60843]
[1724562000101,2.3142,2771.6,2771.3,3.6084]
[1724562000361,2.29614,2771.6,2771.3,3.6084]
[1724562001498,4.45184407,2771.6,2771.0,4.87745046]
[1724562001707,2.15570407,2771.6,2771.0,4.87745046]
[1724562002715,0.64640048,2771.6,2771.2,3.60845]
[1724562003010,2.27400431,2771.7,2771.3,3.6084]
[1724562003011,1.50930359,2771.7,2771.3,3.6084]
[1724562003171,2.2799,2771.6,2771.3,3.6084]
[1724562007928,2.2799,2771.6,2771.4,3.60826]
[1724562010887,2.2799,2771.6,2771.2,8.48563046]
[1724562011214,2.2799,2771.6,2771.2,4.87718046]
[1724562012404,2.65882036,2771.6,2771.0,8.48618046]
[1724562012935,2.2799,2771.5,2771.1,3.60854]
[1724562013597,2.2799,2771.5,2771.2,3.6085]
[1724562013797,2.2799,2771.5,2771.2,3.60846]
[1724562014439,2.2799,2771.5,2771.2,4.87719046]
[1724562019626,2.2799,2771.5,2770.9,3.6089]
[1724562019836,2.3724,2771.3,2770.9,3.6089]
[1724562021321,2.3724,2771.3,2771.0,3.60878]
[1724562021523,2.3724,2771.3,2771.0,4.87751046]
[1724562033022,2.3724,2771.3,2770.8,4.87768046]
[1724562033231,2.3724,2771.3,2770.7,1.26873046]
[1724562033232,2.3684,2771.2,2770.7,1.26873046]
[1724562033462,2.3684,2771.0,2770.6,0.56568687]
[1724562034437,3.87770359,2771.0,2770.6,0.56568687]
[1724562034630,2.3684,2771.0,2770.6,0.56568687]
[1724562035036,3.33008309,2771.0,2770.6,0.56568687]
[1724562035241,4.83938668,2771.0,2770.6,0.56568687]
[1724562035565,3.33008309,2771.0,2770.6,0.56568687]
[1724562036156,2.4889,2770.9,2770.6,0.56568687]
[1724562036355,3.60894,2770.9,2770.6,0.56568687]
[1724562036530,2.4889,2770.8,2770.3,1.26873046]
[1724562037157,2.4889,2770.8,2770.3,4.87843046]
[1724562042576,2.4889,2770.8,2770.3,1.26873046]
[1724562042577,2.4889,2770.7,2770.3,1.26873046]
[1724562042794,2.4889,2770.7,2770.2,3.6098]
[1724562042998,2.4889,2770.6,2770.2,3.6098]
[1724562045987,2.4889,2770.5,2770.1,1.26873046]
[1724562046187,2.4889,2770.5,2769.8,0.56577783]
[1724562046188,2.4889,2770.4,2769.9,1.26873046]